bitfinex/quotes_ETHUSD_20250722
["timestamp","ask_amount","ask_price","bid_price","bid_amount"]
[1753143659218,2.83790297,3766.7,3766.3,4.083]
[1753143659423,0.18302747,3766.7,3766.3,4.083]
[1753143659718,2.65491424,3766.6,3766.2,0.132]
[1753143659920,2.68157498,3766.5,3766.1,4.086]
[1753143660142,0.132,3766.4,3766.1,4.086]
[1753143661544,0.132,3766.4,3766.1,4.5278]
[1753143662144,0.132,3766.4,3766.1,7.18306248]
[1753143662535,0.132,3766.4,3766.1,4.5278]
[1753143663325,0.132,3766.4,3766.1,7.18303726]
[1753143664150,0.132,3766.4,3766.1,4.5278]
[1753143664463,0.132,3766.4,3766.1,7.1830471]
[1753143664656,0.132,3766.4,3766.1,4.5278]
[1753143664947,0.132,3766.4,3766.2,2.65515263]
[1753143665151,0.132,3766.4,3766.1,7.18304937]
[1753143666078,0.132,3766.4,3766.2,2.65518116]
[1753143667569,0.132,3766.4,3766.1,7.1830421]
[1753143667959,0.132,3766.4,3766.1,4.5278]
[1753143668159,0.132,3766.4,3766.1,7.18306262]
[1753143670177,0.132,3766.4,3766.2,2.65519186]
[1753143670470,0.132,3766.4,3766.1,6.74124124]
[1753143670686,0.15852747,3766.4,3766.1,4.086]
[1753143672010,0.132,3766.4,3766.1,4.086]
[1753143672268,0.15852747,3766.4,3766.1,6.74125497]
[1753143672680,0.15852747,3766.4,3766.1,4.086]
[1753143675663,0.2885,3766.2,3766.1,0.001]
[1753143677676,0.15852747,3766.2,3766.1,0.001]
[1753143677986,0.132,3766.2,3766.1,3.11326672]
[1753143678173,0.2885,3766.8,3766.2,2.65519621]
[1753143678386,0.132,3766.8,3766.3,4.073]
[1753143678693,0.132,3766.8,3766.4,1.2487]
[1753143678871,0.132,3766.8,3766.5,2.65496732]
[1753143679068,0.132,3766.8,3766.5,3.11196732]
[1753143679273,0.132,3766.8,3766.5,2.65496732]
[1753143679473,0.132,3766.8,3766.6,0.457]
[1753143679889,0.132,3766.8,3766.7,0.457]
[1753143680676,1e-08,3767.0,3766.7,3.11184376]
[1753143680875,0.13200001,3767.0,3766.8,0.457]
[1753143681078,0.13200001,3767.0,3766.7,2.65484376]
[1753143681267,0.13200001,3767.0,3766.9,0.457]
[1753143681798,0.13200001,3767.0,3766.9,3.1117028]
[1753143682095,0.13200001,3767.0,3766.9,0.457]
[1753143683394,0.13200001,3767.0,3766.6,3.11189661]
[1753143683569,0.13200001,3767.0,3766.8,3.11177116]
[1753143683977,0.13200001,3767.0,3766.9,0.457]
[1753143686667,1e-08,3767.0,3766.9,3.1117028]
[1753143687068,1e-08,3767.0,3766.9,3.43872799]
[1753143687966,1e-08,3767.0,3766.9,4.37017501]
[1753143690219,1e-08,3767.0,3766.9,0.132]
[1753143690421,1e-08,3767.0,3766.7,4.073]
[1753143690719,1e-08,3767.0,3766.9,3.4346028]
[1753143690900,1e-08,3767.0,3766.9,3.5666028]
[1753143691099,1e-08,3767.0,3766.9,4.0236028]
[1753143692000,1e-08,3767.0,3766.9,5.10139634]
[1753143693022,1e-08,3767.0,3766.9,14.73785646]
[1753143693724,1e-08,3767.0,3766.9,8.65139634]
[1753143694997,1e-08,3767.0,3766.9,12.72339634]
[1753143697974,0.132,3768.2,3766.9,9.28879354]
[1753143698101,2.65304597,3769.3,3768.3,0.7699]
[1753143698302,0.1565,3769.4,3768.4,4.072]
[1753143698500,0.1565,3769.8,3769.2,2.65303726]
[1753143698732,0.02652747,3769.7,3769.3,6.7250084]
[1753143699040,0.02652747,3769.7,3769.3,4.072]
[1753143700302,2.67929519,3769.7,3769.3,4.072]
[1753143700516,2.65282035,3769.6,3769.3,4.072]
[1753143700702,0.02652747,3769.5,3769.3,4.072]
[1753143700920,0.1565,3769.4,3768.5,0.457]
[1753143701137,0.02652747,3769.3,3768.7,2.65338903]
[1753143701333,0.02652747,3769.3,3768.8,2.65335655]
[1753143701537,0.02652747,3769.3,3768.9,4.071]
[1753143702065,0.02652747,3769.3,3768.9,6.72424439]
[1753143702206,0.02652747,3769.3,3768.9,4.38238175]
[1753143702407,2.80918477,3769.8,3769.1,2.65310472]
[1753143702725,0.02652747,3769.7,3769.0,0.457]
[1753143703039,0.02652747,3769.7,3769.2,2.65306325]
[1753143703205,2.67926573,3769.7,3769.2,4.071]
[1753143703431,0.02652747,3769.7,3769.2,4.071]
[1753143703667,0.02652747,3769.7,3769.2,7.18107519]
[1753143703828,0.02652747,3769.7,3769.2,4.528]
[1753143704431,2.67925945,3769.7,3769.2,4.528]
[1753143705065,0.02652747,3769.7,3769.2,4.528]
[1753143705369,0.02652747,3769.7,3769.2,7.18105448]
[1753143705670,0.02652747,3769.7,3769.2,1.01456561]
[1753143705973,0.02652747,3769.7,3769.2,4.07]
[1753143706141,2.88877579,3769.7,3769.0,2.6532137]
[1753143706468,0.23602747,3769.7,3769.1,6.72314975]
[1753143706663,0.02652747,3769.7,3769.1,6.72314975]
[1753143706869,2.67926135,3769.7,3769.1,6.72314975]
[1753143707372,0.02652747,3769.7,3769.1,6.72314975]
[1753143707534,2.67932028,3769.7,3769.1,6.72314177]
[1753143707867,0.02652747,3769.7,3769.2,2.65308271]
[1753143708082,0.132,3769.5,3769.1,4.07]
[1753143708249,0.132,3769.5,3769.1,6.72314656]
[1753143708444,0.132,3769.5,3769.4,2.65294211]
[1753143709668,0.132,3769.5,3769.3,2.65298341]
[1753143710469,0.132,3769.5,3769.4,3.11214211]
[1753143711079,0.132,3769.5,3769.4,0.4592]
[1753143712540,0.132,3769.5,3769.4,2.65294211]
[1753143712740,0.132,3769.5,3769.4,3.11214211]
[1753143712975,0.02652747,3770.0,3769.5,2.65285785]
[1753143713176,0.02652747,3770.0,3769.5,4.5292]
[1753143713177,0.132,3770.0,3769.5,4.5292]
[1753143713374,0.132,3770.0,3769.6,0.4592]
[1753143713602,0.132,3770.0,3769.7,0.4592]
[1753143713799,0.132,3770.0,3769.8,2.65261153]
[1753143714090,0.132,3770.0,3769.9,2.65259025]
[1753143714287,0.18302747,3770.3,3770.0,2.65251874]
[1753143714462,0.1565,3770.3,3770.0,0.4592]
[1753143714779,0.1565,3770.3,3770.1,0.4592]
[1753143715679,0.1565,3770.3,3769.8,7.31383468]
[1753143715844,0.18302747,3770.3,3769.8,7.31383468]
[1753143716178,6.08646012,3770.0,3769.5,0.4592]
[1753143716395,0.15852747,3769.9,3769.4,2.65289509]
[1753143716702,0.15852747,3769.9,3769.5,4.069]
[1753143717293,0.132,3769.9,3769.6,0.4592]
[1753143717500,0.1565,3770.7,3769.8,3.44796061]
[1753143717639,0.18302747,3770.7,3770.0,2.65251989]
[1753143717838,0.02652747,3770.7,3770.2,0.132]
[1753143718065,0.02652747,3770.7,3770.3,0.4592]
[1753143718280,0.02652747,3770.7,3770.3,2.65228907]
[1753143718480,0.02652747,3770.7,3770.4,0.4592]
[1753143718684,2.67856383,3770.7,3770.4,0.4592]
[1753143718982,0.02652747,3770.7,3770.4,0.4592]
[1753143719879,2.67856267,3770.7,3770.4,0.4592]
[1753143720080,0.02652747,3770.7,3770.4,0.4592]
[1753143720455,2.67856402,3770.7,3770.4,0.4592]
[1753143720652,6.08646012,3770.5,3769.9,0.4592]
[1753143720853,6.08646012,3770.5,3769.4,0.4592]
[1753143720854,6.08646012,3770.1,3769.4,0.4592]
[1753143721053,0.02652747,3770.0,3769.4,0.5912]
[1753143721282,2.80920476,3769.8,3769.1,3.48001063]
[1753143721455,2.94117141,3769.8,3769.2,6.72204753]
[1753143721656,2.94117141,3769.8,3769.3,2.65300976]
[1753143721657,0.2885,3769.8,3769.3,2.65300976]
[1753143721889,0.2885,3769.8,3769.3,0.4592]
[1753143722121,0.2885,3769.8,3769.4,3.11212255]
[1753143722291,0.132,3769.8,3769.4,0.4592]
[1753143722591,0.132,3769.8,3769.6,2.65279654]
[1753143722793,0.132,3769.8,3769.7,0.4592]
[1753143723404,0.132,3769.8,3769.4,6.72191995]
[1753143723561,0.132,3769.8,3769.5,3.1120409]
[1753143723905,0.18302747,3770.1,3769.5,3.1120409]
[1753143723906,0.18302747,3770.1,3769.5,0.4592]
[1753143724055,0.132,3770.0,3769.6,0.4592]
[1753143724568,0.132,3770.0,3769.4,0.132]
[1753143724769,8.87100797,3770.0,3769.5,4.069]
[1753143724970,0.132,3770.0,3769.7,2.65271672]
[1753143725213,0.132,3770.0,3769.8,0.4592]
[1753143725503,0.132,3770.0,3769.8,1.39970093]
[1753143725702,0.132,3770.5,3770.0,2.65245464]
[1753143725907,0.15852747,3770.5,3770.0,2.65245464]
[1753143726084,0.15852747,3770.5,3770.0,0.4592]
[1753143726290,0.15852747,3770.5,3769.9,0.132]
[1753143726597,0.2885,3770.2,3769.5,4.201]
[1753143726767,0.02652747,3770.1,3769.5,6.85384569]
[1753143726967,2.67898225,3770.1,3769.5,6.85384569]
[1753143727177,0.02652747,3770.1,3769.5,6.85384569]
[1753143727588,2.67898674,3770.1,3769.5,6.85384569]
[1753143727989,0.02652747,3770.1,3769.6,2.65278667]
[1753143728393,0.02652747,3770.1,3769.7,0.4592]
[1753143728609,2.67898455,3770.1,3769.7,0.4592]
[1753143729012,2.65252592,3770.0,3769.7,0.4592]
[1753143729216,0.02652747,3769.9,3769.5,0.132]
[1753143729373,0.02652747,3769.9,3769.3,0.8327]
[1753143729374,6.08646012,3769.6,3769.2,0.132]
[1753143729715,6.72145735,3770.1,3769.4,2.65294211]
[1753143729902,0.132,3770.0,3769.4,2.78494211]
[1753143730210,0.132,3770.0,3769.5,3.1120586]
[1753143730411,0.132,3770.0,3769.6,2.65274997]
[1753143730712,0.132,3770.0,3769.6,0.4592]
[1753143730899,0.15852747,3770.0,3769.5,2.65284903]
[1753143731209,0.15852747,3770.0,3769.7,0.4592]
[1753143732418,0.15852747,3770.0,3769.8,0.4592]
[1753143733409,0.15852747,3770.0,3769.4,4.201]
[1753143733597,0.132,3770.0,3769.9,0.4592]
[1753143733800,4.069,3770.1,3769.9,0.4592]
[1753143734002,4.069,3770.1,3770.0,0.4592]
[1753143734199,0.132,3770.2,3770.0,0.4592]
[1753143734400,4.068,3770.5,3770.1,0.4592]
[1753143734629,0.132,3770.1,3769.5,0.5912]
[1753143734780,6.08646012,3769.9,3769.5,0.5912]
[1753143735182,6.11298759,3769.9,3769.5,0.5912]
[1753143735721,8.76559844,3769.9,3769.5,0.5912]
[1753143735914,8.73907097,3769.9,3769.5,0.5912]
[1753143736217,6.08646012,3769.9,3769.5,0.5912]
[1753143736518,8.76559302,3769.9,3769.5,0.5912]
[1753143736719,8.73906555,3769.9,3769.5,0.5912]
[1753143736895,6.08646012,3769.9,3769.5,0.5912]
[1753143737096,6.11298759,3769.9,3769.5,0.5912]
[1753143737506,0.002,3770.0,3769.6,0.4557]
[1753143738014,0.002,3770.0,3769.6,1.229]
[1753143738528,2.68104913,3770.0,3769.7,0.4557]
[1753143738987,2.68104913,3770.0,3769.5,0.132]
[1753143739317,2.68104913,3770.0,3769.6,0.4557]
[1753143739520,6.08646012,3769.8,3769.5,0.132]
[1753143739722,6.08646012,3769.8,3769.6,0.4557]
[1753143740101,6.08646012,3769.9,3769.6,0.4557]
[1753143740431,6.08646012,3769.9,3769.5,0.132]
[1753143740740,2.8097284,3769.0,3768.2,0.833]
[1753143740958,6.08646012,3768.8,3768.4,0.132]
[1753143741106,0.132,3769.1,3768.7,2.65341872]
[1753143741306,4.068,3769.1,3768.7,2.78541872]
[1753143741552,4.068,3769.1,3768.8,0.4557]
[1753143742161,0.132,3769.4,3768.8,0.79]
[1753143742312,0.132,3769.4,3768.9,0.4557]
[1753143742745,0.132,3769.9,3769.4,2.65289934]
[1753143742926,4.068,3769.7,3769.4,2.65289934]
[1753143743119,4.068,3769.7,3769.5,0.4557]
[1753143743322,4.068,3769.7,3769.5,3.10855729]
[1753143743647,4.068,3769.7,3769.6,0.4557]
[1753143744006,4.068,3769.7,3769.6,3.10850135]
[1753143746217,0.002,3770.0,3769.9,3.89829025]
[1753143747266,0.002,3770.0,3769.9,3.92481615]
[1753143747564,0.002,3770.0,3769.9,3.89829025]
[1753143747716,0.002,3770.0,3769.9,5.29759333]
[1753143748568,0.002,3770.0,3769.9,9.36559333]
[1753143753868,0.002,3770.0,3769.9,9.36559333]
[1753143754069,0.002,3770.0,3769.9,12.91559333]
[1753143754373,1e-08,3770.0,3769.9,12.91559333]
[1753143756856,1e-08,3770.0,3769.9,12.91459333]
[1753143767274,1e-08,3770.0,3769.9,18.98712926]
[1753143768663,1e-08,3770.0,3769.9,18.98612926]
[1753143770685,1e-08,3770.0,3769.9,14.92012926]
[1753143770885,1e-08,3770.0,3769.9,18.98612926]
[1753143771789,1e-08,3770.0,3769.9,14.92012926]
[1753143771983,1e-08,3770.0,3769.9,18.98612926]
[1753143773658,1e-08,3770.0,3769.9,19.36051128]
[1753143775690,1e-08,3770.6,3770.5,4.00156814]
[1753143775855,1e-08,3770.6,3770.5,17.56678256]
[1753143776055,1e-08,3770.6,3770.5,18.13676088]
[1753143779511,1e-08,3770.6,3770.5,12.06422495]
[1753143785018,0.32000001,3771.6,3771.5,2.65146493]
[1753143785801,0.32000001,3771.6,3771.4,6.8485057]
[1753143786128,0.2095,3771.5,3771.4,6.8485057]
[1753143788320,0.11050001,3771.6,3771.5,2.65146493]
[1753143788805,0.32000001,3771.6,3771.5,2.65146493]
[1753143789012,0.32000001,3771.6,3771.4,6.84851741]
[1753143789243,0.11050001,3771.6,3771.4,6.84851741]
[1753143789422,0.2095,3771.5,3771.4,6.84851741]
[1753143789743,0.1085,3771.4,3771.3,4.064]
[1753143789912,0.1085,3771.4,3771.2,2.78361826]
[1753143790095,0.1085,3771.4,3771.3,2.65160554]
[1753143791433,0.318,3771.4,3771.2,2.78365952]
[1753143791629,0.2095,3771.3,3771.2,2.78365952]
[1753143792032,0.1085,3771.4,3771.2,2.78365952]
[1753143792328,0.318,3771.4,3771.3,2.65160554]
[1753143792493,0.1085,3771.4,3771.3,2.65160554]
[1753143792699,0.1085,3771.4,3771.2,2.78367127]
[1753143792917,0.1085,3771.4,3770.2,0.8064]
[1753143792918,0.2095,3771.3,3769.9,2.22190308]
[1753143793111,0.2405,3771.1,3770.5,0.132]
[1753143793314,0.2405,3771.1,3770.0,4.3127155]
[1753143793315,0.1085,3771.1,3770.6,4.064]
[1753143793611,0.1085,3771.1,3771.0,2.65181649]
[1753143793811,0.132,3771.4,3771.3,2.65160554]
[1753143793812,0.1085,3771.4,3771.3,2.65160554]
[1753143794150,0.002,3771.6,3771.5,2.65146493]
[1753143794345,0.1085,3772.6,3772.4,2.65078651]
[1753143794638,0.1085,3772.6,3772.5,2.65076209]
[1753143796443,0.318,3772.6,3772.3,0.132]
[1753143796749,0.1085,3772.2,3771.7,0.132]
[1753143796918,0.1085,3772.1,3771.7,0.132]
[1753143797119,0.2095,3772.0,3771.7,2.78327521]
[1753143797426,0.318,3771.9,3771.7,0.132]
[1753143798450,0.2095,3771.8,3771.7,0.132]
[1753143798657,0.23602747,3771.8,3771.3,2.65160223]
[1753143798807,0.1085,3771.7,3771.3,6.71460223]
[1753143799008,0.2095,3771.6,3771.4,2.65151173]
[1753143799533,0.1085,3771.7,3771.5,2.65146493]
[1753143799937,0.1085,3771.7,3771.6,2.65139463]
[1753143802049,0.1085,3771.7,3771.5,2.6514377]
[1753143802252,0.1085,3771.7,3771.6,2.65139463]
[1753143803134,0.1085,3771.7,3771.5,2.65145327]
[1753143803446,0.1085,3771.7,3771.6,2.65139463]
[1753143804559,0.1085,3771.7,3771.5,2.65142096]
[1753143804924,0.1085,3771.7,3771.3,6.71458633]
[1753143805150,0.318,3771.7,3771.3,6.71458633]
[1753143805356,0.2095,3771.6,3771.2,0.132]
[1753143805657,0.132,3771.4,3771.0,4.063]
[1753143805858,0.1085,3771.2,3770.8,0.132]
[1753143806033,0.1085,3771.2,3770.7,6.71502207]
[1753143806034,0.02652747,3771.1,3770.7,6.71502207]
[1753143806234,0.36802747,3771.1,3770.7,6.71502207]
[1753143806775,0.132,3771.1,3771.0,2.65181649]
[1753143807823,0.1085,3771.4,3771.2,2.65162252]
[1753143808024,0.1085,3771.4,3771.0,2.78381584]
[1753143808262,0.1085,3771.4,3771.2,2.65162143]
[1753143808945,0.1085,3771.4,3770.7,4.063]
[1753143809274,0.132,3771.3,3771.0,2.65179318]
[1753143809439,0.132,3771.3,3771.2,2.65167585]
[1753143809835,0.132,3771.3,3771.1,2.65171837]
[1753143810084,0.132,3771.3,3771.0,2.65179679]
[1753143810286,0.15852747,3771.3,3771.0,2.65179679]
[1753143810492,0.132,3771.3,3771.1,2.65171436]
[1753143810670,0.132,3771.3,3771.2,2.65167585]
[1753143811037,0.1085,3771.4,3771.3,2.65160554]
[1753143812320,0.1085,3771.4,3771.1,2.65173375]
[1753143812439,0.318,3771.4,3770.9,2.78383172]
[1753143812643,0.318,3771.4,3770.9,0.132]
[1753143812978,0.1085,3771.4,3771.1,2.65173781]
[1753143813500,0.1085,3771.4,3771.1,2.65172157]
[1753143813780,0.1085,3771.4,3771.0,2.65179683]
[1753143813943,0.1085,3771.4,3771.1,2.65173682]
[1753143814136,0.1085,3771.4,3771.2,2.65165428]
[1753143814937,0.1085,3771.4,3771.3,2.65160554]
[1753143815553,0.132,3771.6,3771.4,2.65148335]
[1753143815758,0.15852747,3771.6,3771.5,2.65146493]
[1753143815974,0.132,3771.6,3771.5,2.65146493]
[1753143816178,0.132,3771.6,3771.4,2.65152187]
[1753143816358,0.132,3771.6,3770.8,2.65190605]
[1753143816359,0.1085,3771.7,3771.6,2.65139463]
[1753143816560,0.002,3772.0,3771.3,0.48421605]
[1753143816561,0.2425,3772.0,3771.9,2.65118375]
[1753143816755,0.1105,3772.0,3771.9,2.65118375]
[1753143817385,0.1105,3772.0,3771.8,2.65122668]
[1753143817573,0.1105,3772.0,3771.9,2.65118375]
[1753143817771,0.002,3772.0,3771.9,2.65118375]
[1753143819165,0.002,3772.0,3771.9,2.78318375]
[1753143819991,0.002,3772.0,3771.9,0.132]
[1753143820346,0.002,3772.0,3771.9,2.78318375]
[1753143821202,0.002,3772.0,3771.9,3.24088375]
[1753143821367,0.002,3772.0,3771.9,3.83275447]
[1753143821871,0.002,3772.0,3771.9,2.78318375]
[1753143822417,0.002,3772.0,3771.9,0.132]
[1753143822604,0.002,3772.0,3771.9,2.78318375]
[1753143823382,0.002,3772.0,3771.9,0.132]
[1753143823717,0.002,3772.0,3771.3,4.062]
[1753143823917,6.0699536,3771.8,3771.3,6.84555459]
[1753143824079,6.09648107,3771.8,3771.3,2.78357648]
[1753143824415,6.09648107,3771.8,3771.4,2.65153234]
[1753143824581,6.09648107,3771.8,3771.3,0.132]
[1753143825023,6.09648107,3771.8,3771.4,2.65153523]
[1753143825401,6.09648107,3771.8,3771.5,2.65145913]
[1753143825933,0.02652747,3771.8,3771.5,2.65145913]
[1753143827839,0.2405,3771.9,3771.5,2.65145913]
[1753143829024,0.2405,3771.9,3771.4,2.65151679]
[1753143829754,0.2405,3771.9,3771.5,2.65144559]
[1753143830151,0.2405,3771.9,3771.4,2.65151631]
[1753143831254,0.2405,3771.9,3771.5,2.6514596]
[1753143832848,0.002,3772.0,3771.8,2.65125404]
[1753143833161,0.002,3772.0,3771.9,3.43179558]
[1753143833356,0.002,3772.0,3771.9,3.86109558]
[1753143833658,0.002,3772.0,3771.9,7.92309558]
[1753143833973,0.002,3772.0,3771.9,7.89658375]
[1753143834276,0.002,3772.0,3771.9,8.96456753]
[1753143836725,0.002,3772.0,3771.9,9.51456753]
[1753143837955,0.002,3772.0,3771.9,12.51456753]
[1753143839134,1e-08,3772.0,3771.9,12.51456753]
[1753143841757,1e-08,3772.0,3771.9,8.45256753]
[1753143842072,1e-08,3772.0,3771.9,5.45256753]
[1753143842245,1e-08,3772.0,3771.1,2.6526806]
[1753143842246,0.1085,3771.9,3771.1,0.001]
[1753143842451,0.1085,3771.9,3771.2,4.4903]
[1753143842649,0.1085,3771.9,3771.6,2.65138839]
[1753143842879,0.1085,3771.9,3771.5,2.65146313]
[1753143843175,0.1085,3771.9,3771.3,0.02651605]
[1753143843371,0.1085,3771.9,3771.6,2.65137833]
[1753143843590,0.1085,3771.9,3771.5,2.65144746]
[1753143844573,0.1085,3771.9,3771.3,6.7126012]
[1753143844574,0.1085,3771.9,3771.6,0.4293]
[1753143844739,1e-08,3772.0,3771.9,2.65118375]
[1753143845645,1e-08,3772.0,3771.6,0.45581394]
[1753143845847,1e-08,3772.0,3771.8,2.6512463]
[1753143846038,1e-08,3772.0,3771.9,2.65118375]
[1753143847072,1e-08,3772.0,3771.9,3.10699558]
[1753143847372,1e-08,3772.0,3771.9,8.14992558]
[1753143847576,1e-08,3772.0,3771.9,8.67341375]
[1753143847774,1e-08,3772.0,3771.9,9.43581375]
[1753143851175,1e-08,3772.0,3771.9,5.37481375]
[1753143851382,1e-08,3772.0,3771.9,8.67341375]
[1753143852351,1e-08,3772.0,3771.9,8.80541375]
[1753143855199,1e-08,3772.0,3771.9,6.84418375]
[1753143855399,1e-08,3772.0,3771.9,7.27348375]
[1753143856461,1e-08,3772.0,3771.9,8.62478375]
[1753143856674,1e-08,3772.0,3771.9,8.07378375]
[1753143856859,1e-08,3772.0,3771.9,7.27248375]
[1753143857093,1e-08,3772.0,3771.9,6.84318375]
[1753143859709,1e-08,3772.0,3771.9,4.192]
[1753143860025,1e-08,3772.0,3771.8,4.06]
[1753143860388,1e-08,3772.0,3771.9,2.65118375]
[1753143862396,1e-08,3772.0,3771.8,6.7112388]
[1753143862595,1e-08,3772.0,3771.8,6.71125189]
[1753143863209,1e-08,3772.0,3771.9,2.65118375]
[1753143866787,1e-08,3772.0,3771.9,2.65218375]
[1753143867628,1e-08,3772.0,3771.9,0.001]
[1753143868128,1e-08,3772.0,3771.9,2.65218375]
[1753143868329,1e-08,3772.0,3771.9,0.001]
[1753143870331,1e-08,3772.0,3771.9,2.65218375]
[1753143871528,1e-08,3772.0,3771.9,3.10508375]
[1753143871730,1e-08,3772.0,3771.9,2.65218375]
[1753143872496,1e-08,3772.0,3771.9,3.10508375]
[1753143872917,1e-08,3772.0,3771.9,9.61064499]
[1753143873239,1e-08,3772.0,3771.9,9.74264499]
[1753143876552,1e-08,3772.0,3771.9,12.74264499]
[1753143885723,1e-08,3772.0,3771.9,7.92124499]
[1753143885924,1e-08,3772.0,3771.9,9.84318375]
[1753143886160,1e-08,3772.0,3771.9,10.29608375]
[1753143887551,1e-08,3772.0,3771.9,9.84318375]
[1753143887961,1e-08,3772.0,3771.9,10.85938375]
[1753143888147,1e-08,3772.0,3771.9,11.63978375]
[1753143888341,1e-08,3772.0,3771.9,13.67602956]
[1753143890480,1e-08,3772.0,3771.9,19.7473878]
[1753143892085,0.1085,3774.0,3772.8,1.3252]
[1753143892380,0.1085,3774.0,3773.9,2.78177874]
[1753143892565,0.2095,3774.5,3774.3,2.64947904]
[1753143892566,0.1085,3774.4,3774.3,2.64947904]
[1753143892880,0.1085,3774.4,3774.2,2.64954436]
[1753143893381,0.1085,3774.4,3774.0,4.059]
[1753143893542,0.0585,3774.4,3774.0,4.059]
[1753143894002,0.0585,3774.4,3774.0,6.70865726]
[1753143895052,0.0585,3774.4,3774.1,2.64962447]
[1753143895877,0.0585,3774.4,3774.0,6.70869266]
[1753143896068,0.0585,3774.4,3774.1,2.64963095]
[1753143896887,0.0585,3774.4,3774.0,6.73518285]
[1753143897092,0.0585,3774.4,3774.0,6.73519001]
[1753143897256,0.0585,3774.4,3774.0,6.70869293]
[1753143898507,0.0585,3774.4,3774.0,6.70868183]
[1753143898803,0.0585,3774.4,3774.1,2.64963559]
[1753143899010,0.0585,3774.4,3774.0,6.70868524]
[1753143899185,0.0585,3774.4,3774.0,4.059]
[1753143899371,0.0585,3774.4,3774.0,6.70870058]
[1753143901778,0.0585,3774.4,3774.1,2.64959344]
[1753143902791,0.0585,3774.4,3774.1,2.64961493]
[1753143903373,0.0585,3774.4,3774.0,6.70869671]
[1753143903606,0.0585,3774.4,3774.0,4.059]
[1753143903784,0.0585,3774.4,3774.0,6.70870227]
[1753143903996,0.0585,3774.4,3774.1,2.64962758]
[1753143905019,0.0585,3774.7,3774.2,4.08349568]
[1753143905215,0.0585,3775.0,3774.3,0.4662]
[1753143905524,0.0585,3775.0,3774.6,0.132]
[1753143905724,0.0585,3775.0,3774.8,2.64909615]
[1753143906009,0.0585,3775.0,3774.9,2.64907679]
[1753143906211,0.0605,3775.2,3774.8,3.11534676]
[1753143906444,0.0605,3775.2,3774.6,0.132]
[1753143906573,6.07135824,3775.1,3774.6,2.78126583]
[1753143906775,6.07135824,3775.1,3774.7,2.64921238]
[1753143907079,0.0605,3775.2,3774.9,2.64906068]
[1753143907307,0.0605,3775.2,3774.8,2.64914697]
[1753143907487,0.0605,3775.2,3774.9,2.64901372]
[1753143907898,0.0605,3775.2,3774.8,2.64912346]
[1753143908220,0.0605,3775.2,3774.7,2.64920099]
[1753143908422,0.0605,3775.2,3774.8,0.4662]
[1753143908725,2.70938473,3775.2,3774.6,6.83826437]
[1753143909029,2.70938473,3775.2,3774.6,4.189]
[1753143909384,2.70941941,3775.2,3774.6,4.189]
[1753143909594,2.70941941,3775.2,3773.8,3.19982165]
[1753143909595,0.0585,3774.6,3773.8,2.64983286]
[1753143909828,0.0585,3774.6,3774.3,0.132]
[1753143911112,2.70784637,3774.6,3774.3,0.132]
[1753143911437,0.02652747,3774.5,3774.1,4.056]
[1753143911644,0.08502747,3774.6,3774.1,6.70558193]
[1753143911807,0.0585,3774.6,3774.1,4.056]
[1753143912000,0.0585,3774.6,3774.1,6.70563756]
[1753143912207,0.0585,3774.6,3774.1,7.17183756]
[1753143912601,0.0585,3774.6,3774.1,4.056]
[1753143912817,0.132,3774.7,3774.1,4.056]
[1753143912818,8.72036941,3775.0,3774.4,2.64942479]
[1753143913018,0.1905,3774.9,3774.5,2.6493571]
[1753143913424,2.67568302,3774.8,3774.3,0.132]
[1753143913733,6.07135824,3774.7,3774.3,0.132]
[1753143913933,2.64928734,3774.6,3774.3,0.132]
[1753143914130,0.08502747,3774.5,3773.9,2.64973588]
[1753143914334,0.08502747,3774.5,3774.1,0.132]
[1753143914522,0.08502747,3774.5,3774.1,4.188]
[1753143914873,0.08502747,3774.5,3774.1,0.132]
[1753143915053,0.08502747,3774.5,3774.1,4.188]
[1753143915259,0.0585,3774.5,3774.1,6.8376228]
[1753143915555,0.0585,3774.5,3774.2,2.6495436]
[1753143915744,0.0585,3774.5,3774.2,3.1157436]
[1753143915919,0.0585,3774.5,3774.2,0.4662]
[1753143916352,0.0585,3774.5,3774.2,3.11572469]
[1753143916953,0.0585,3774.5,3774.1,6.83760535]
[1753143917250,0.0585,3774.5,3774.1,4.188]
[1753143917826,2.73441427,3774.5,3774.1,4.188]
[1753143918028,0.08502747,3774.5,3774.1,4.188]
[1753143918566,0.08502747,3774.5,3774.1,6.83763127]
[1753143918871,0.02652747,3774.5,3774.2,0.4337]
[1753143919075,0.002,3775.1,3774.3,3.08313466]
[1753143919076,4.056,3775.0,3774.3,3.08313466]
[1753143919286,0.132,3774.9,3774.5,2.64935172]
[1753143919579,0.132,3774.9,3774.6,0.4337]
[1753143919948,0.132,3774.9,3774.4,6.70540067]
[1753143920135,0.02652747,3774.8,3774.3,3.21516971]
[1753143920343,0.02652747,3774.8,3774.3,7.27116971]
[1753143920964,2.67570165,3774.8,3774.3,0.132]
[1753143921150,2.70773651,3774.7,3774.3,4.188]
[1753143922027,0.0585,3774.7,3774.3,4.188]
[1753143922639,2.70772964,3774.7,3774.3,4.188]
[1753143923036,6.12985824,3774.7,3774.3,0.132]
[1753143923237,2.64939865,3774.5,3774.3,0.132]
[1753143923850,2.64942772,3774.4,3774.3,0.132]
[1753143924162,8.72078596,3774.4,3774.0,4.187]
[1753143924350,0.08502747,3774.3,3773.3,0.7869]
[1753143924557,2.64957427,3774.2,3773.8,0.132]
[1753143924758,6.07135824,3774.0,3773.5,4.055]
[1753143924948,8.72111112,3774.0,3773.5,4.187]
[1753143925544,6.07135824,3774.0,3773.5,4.187]
[1753143925764,6.09788571,3774.0,3773.5,7.27075695]
[1753143926061,2.64977964,3773.9,3773.5,0.132]
[1753143926266,8.72112477,3774.0,3773.5,4.187]
[1753143926568,6.07135824,3774.0,3773.5,4.187]